Cogmind - Beta 12 @@@ ROGUE MODE // 2023.08.04 @ 18:03:29 Player: Roxy Result: Destroyed by Y-54 Guardian with Flak Gun Performance ------------- Evolutions (3) 1500 Regions Visited (4) 800 Robots Destroyed (52) 260 Value Destroyed (1782) 1782 Prototype IDs (2) 40 Alien Tech Used (0) 0 Bonus (40) 40 TOTAL SCORE: 4422 Bonus ------- High Alert Combat Kills 40 Cogmind --------- Core Integrity 0/700 Matter 296/300 Energy 127/160 System Corruption 1% Temperature Danger (437) Movement Core (200) Ox3 Location -7/Factory Parts ------- > --- POWER (2) -------- Light Nuclear Core > --- PROPULSION (4) --- (None) > --- UTILITY (4) ------ Advanced Terrain Scan Processor Transport Network Coupler Core Analyzer Weapon Cycler > --- WEAPON (3) ------- Advanced Beam Cannon > --- INVENTORY (5) ---- High-capacity Storage Unit ECM Suite Advanced ECM Suite Improved Datajack Peak State ------------ > --- POWER ------------ Light Nuclear Core Improved Deuterium Engine > --- PROPULSION ------- Aluminum Leg Aluminum Leg Aluminum Leg > --- UTILITY ---------- Advanced Terrain Scan Processor Transport Network Coupler Core Analyzer Weapon Cycler > --- WEAPON ----------- Gatling Laser Advanced Beam Cannon Gauss Rifle > --- INVENTORY -------- High-capacity Storage Unit ECM Suite Advanced ECM Suite Hacking Suite Improved Datajack [Rating: 35] Favorites ----------- Power Ion Engine Engine Ion Engine Power Core Light Nuclear Core Propulsion Aluminum Leg Leg Aluminum Leg Utility Small Storage Unit Device Heat Sink Storage Small Storage Unit Processor Core Analyzer Hackware Hacking Suite Weapon Beam Cannon Energy Gun Spread Laser Energy Cannon Beam Cannon Ballistic Gun Gauss Rifle Launcher Grenade Launcher Special Melee Weapon Improved Datajack Build | -11 -10 -9 -8 -7 ------- Run | Jun Mat Mat Mat Fac Slots Evolved 6 | . . 2 2 2 Power 1 | . . . 1 . Propulsion 2 | . . 2 . . Utility 2 | . . . . 2 Weapon 1 | . . . 1 . Parts Attached 59 | 6 3 7 15 28 Power 8 | 1 . . 3 4 Engine 4 | 1 . . 2 1 Core 4 | . . . 1 3 Reactor . | . . . . . Propulsion 18 | 2 . 4 4 8 Treads . | . . . . . Leg 18 | 2 . 4 4 8 Wheel . | . . . . . Hover . | . . . . . Flight . | . . . . . Utility 12 | 1 1 1 1 8 Device 5 | . 1 1 . 3 Storage 2 | 1 . . 1 . Processor 4 | . . . . 4 Hackware 1 | . . . . 1 Protection . | . . . . . Artifact . | . . . . . Weapon 21 | 2 2 2 7 8 Energy Gun 8 | 1 1 1 3 2 Energy Cannon 5 | . 1 . . 4 Ballistic Gun 4 | 1 . . 1 2 Ballistic Cannon . | . . . . . Launcher 3 | . . 1 2 . Special Weapon . | . . . . . Impact Weapon . | . . . . . Slashing Weapon . | . . . . . Piercing Weapon . | . . . . . Special Melee Weapon 1 | . . . 1 . Unidentified Prototypes 2 | . . . 1 1 Parts Lost 33 | . 2 . 18 13 Power 6 | . . . 4 2 Propulsion 13 | . . . 6 7 Utility 1 | . . . 1 . Weapon 13 | . 2 . 7 4 Highest Loss Streak 16 | . 2 . 16 5 To Critical Strikes . | . . . . . Average Slot Usage (%) 75 | . 86 100 83 61 Engine 7 | . 14 11 14 2 Core 2 | . . . . 5 Leg 26 | . 28 44 30 17 Device 6 | . 2 11 7 4 Storage 5 | . 14 11 7 . Processor 7 | . . . . 16 Energy Gun 6 | . 13 9 8 3 Energy Cannon 5 | . . 11 7 4 Ballistic Gun 3 | . 13 . . 4 Special Melee Weapon 1 | . . . 5 . Naked Turns . | . . . . . Heaviest Build 63 | 14 17 18 63 28 Greatest Support 50 | 20 20 40 50 40 Greatest Overweight (x) 5 | . . . 1 5 Average Overweight (x) . | . . . . . Largest Inventory Capacity 20 | 8 8 8 20 5 Average Capacity 8 | 6 8 8 14 5 Most Carried 11 | 5 7 8 11 5 Average Carried 5 | 3 5 5 8 4 Final Capacity 8 | 8 8 8 5 5 Final Carried 8 | 2 4 8 5 4 Class Distribution -------------------- 53% | Mutant 25% | Scavenger-Mutant 21% | Scavenger-Gunner Dominant Class ---------------- Mutant | -10/Materials Mutant | -9/Materials Scavenger-Mutant | -8/Materials Mutant | -7/Factory Resources | -11 -10 -9 -8 -7 ----------- Run | Jun Mat Mat Mat Fac Matter Collected 963 | 253 37 116 57 500 Remotely . | . . . . . Salvage Created 1892 | . 135 371 423 963 Parts 125 | . 11 29 23 62 Haulers Intercepted 1 | . . . . 1 Recyclers Shooed 2 | . . . 1 1 Parts Field Recycled . | . . . . . Retrieved Matter . | . . . . . Parts Self-Destructed . | . . . . . Prevented . | . . . . . Kills | -11 -10 -9 -8 -7 ------- Run | Jun Mat Mat Mat Fac Combat Hostiles Destroyed 41 | . 3 13 8 17 Guns 24 | . 3 3 4 14 Cannons 11 | . . 6 2 3 AOE 6 | . . 4 2 . Classes Destroyed 11 | . 1 5 1 4 Worker 4 | . . 2 . 2 Builder 3 | . . . 2 1 Hauler 1 | . . . . 1 Recycler 1 | . . . . 1 Watcher 2 | . . 1 1 . Swarmer 7 | . . 4 . 3 Grunt 23 | . 3 7 6 7 Brawler 1 | . . 1 . . Duelist 1 | . . . . 1 Sentry 6 | . . 1 2 3 Programmer 3 | . . . . 3 Best Kill Streak 8 | . 2 6 8 6 Combat Bots Only 5 | . 2 5 5 4 Max Kills in Single Turn 4 | . 1 4 4 2 Gunslinging . | . . . . . Exploded 3 | . . 3 2 . Melee . | . . . . . Uniques/NPCs Destroyed . | . . . . . Combat | -11 -10 -9 -8 -7 -------- Run | Jun Mat Mat Mat Fac Damage Taken 4424 | . 234 339 1850 2001 Core 1118 | . 23 42 349 704 Absorbed by Shields . | . . . . . Regen/Repaired (Parts) 63 | . . . 63 . Core Remaining (%) 78 | 100 90 89 36 . Volleys Fired 137 | . 12 24 33 68 Largest 3 | . 2 2 3 3 Hottest 176 | . 60 125 161 176 Shots Fired 263 | . 24 48 52 139 Gun 155 | . 24 22 23 86 Cannon 100 | . . 24 23 53 Launcher 8 | . . 2 6 . Special . | . . . . . Kinetic 73 | . 12 . . 61 Thermal 164 | . . 46 40 78 Explosive 4 | . . 2 2 . Electromagnetic 22 | . 12 . 10 . Robot Hit Streak 9 | . 3 7 8 9 Robot Miss Streak 8 | . 2 5 8 6 Penetration Max 1 | . . . . 1 Secondary Targets 1 | . 1 . . . Max Gunslinging Chain 1 | . 1 . . . Shots Hit Robots 180 | . 15 37 40 88 Core Hits 123 | . 7 35 34 47 Critical Kills . | . . . . . Critical Parts Destroyed 2 | . . . . 2 Critical Strikes 2 | . . . . 2 Destroy 2 | . . . . 2 Melee Attacks . | . . . . . Impact . | . . . . . Slashing . | . . . . . Piercing . | . . . . . Sneak Attacks . | . . . . . Combat Hostiles . | . . . . . Follow-up Attacks . | . . . . . Damage Inflicted 4280 | . 198 935 1275 1872 Guns 1894 | . 198 243 278 1175 Cannons 1291 | . . 315 279 697 Explosions 1092 | . . 377 715 . Melee . | . . . . . Ramming 3 | . . . 3 . Kinetic 958 | . 101 . . 857 Thermal 2183 | . . 700 468 1015 Explosive 567 | . . 235 332 . Electromagnetic 569 | . 97 . 472 . Impact . | . . . . . Slashing . | . . . . . Piercing . | . . . . . Highest Corruption 1 | . . . . 1 Average Corruption 1 | . . . . 1 Corruption Purged . | . . . . . Corruption Blocked . | . . . . . Effects 4 | . . . . 4 Matter Fused 1 | . . . . 1 Heat Flow Errors 1 | . . . . 1 Energy Discharges 1 | . . . . 1 Misfires 1 | . . . . 1 Overload Shots . | . . . . . Overflow Damage 28 | . . 24 4 . Projectiles 4 | . . . 4 . Explosions 24 | . . 24 . . Melee . | . . . . . Knockbacks . | . . . . . Impact . | . . . . . Kinetic . | . . . . . Secondary . | . . . . . Self-Inflicted Damage 31 | . . 17 14 . Shots 2 | . . 1 1 . Rammed . | . . . . . Targets Rammed 1 | . . . 1 . Kicked 1 | . . . 1 . Crushed . | . . . . . Highest Temperature 538 | . 90 538 289 444 Average Temperature 140 | . 40 179 109 149 Received Heat Transfer 1497 | . 96 123 882 396 Effects 9 | . . 3 . 6 Shutdowns 5 | . . 2 . 3 Energy Bleed 3 | . . 1 . 2 Damage (minor) 1 | . . . . 1 Siege Activations . | . . . . . Robots Corrupted . | . . . . . Combat Hostiles . | . . . . . Parts Fried 2 | . . . 2 . Impact Corruptions . | . . . . . Robots Melted . | . . . . . Combat Hostiles . | . . . . . Parts Melted 3 | . . 1 1 1 Heat Transferred 3831 | . . 1121 866 1844 Parts Sabotaged . | . . . . . Parts Stolen . | . . . . . Parts Stripped . | . . . . . Power Chain Reactions . | . . . . . Missiles Intercepted . | . . . . . Alert | -11 -10 -9 -8 -7 ------- Run | Jun Mat Mat Mat Fac Peak Influence 506 | . 95 506 377 373 Initial 213 | . . 37 213 162 Average 194 | . 52 323 249 170 Maximum Alert Level 2 | . . 2 1 1 Low Security (%) 59 | 100 100 31 6 83 Level 1 33 | . . 26 93 16 Level 2 6 | . . 42 . . Level 3 . | . . . . . Level 4 . | . . . . . Level 5 . | . . . . . High Security . | . . . . . Max Security . | . . . . . Squads Dispatched 9 | . 1 2 3 3 Investigation 1 | . . 1 . . Extermination 2 | . . . . 2 Reinforcement 6 | . 1 1 3 1 Assault . | . . . . . Garrison . | . . . . . Intercept . | . . . . . Searches Triggered . | . . . . . Construction Impeded 2 | . . 1 1 . Haulers Reinforced . | . . . . . Active Scanning Responses . | . . . . . Cargo Convoy Interrupts . | . . . . . Stealth | -11 -10 -9 -8 -7 --------- Run | Jun Mat Mat Mat Fac Distress Signals 8 | . 1 2 4 1 Communications Jammed . | . . . . . Distress Signals . | . . . . . Times Spotted 86 | . 5 16 34 31 Peak Tracking Total 9 | . 2 5 9 6 Tactical Retreats 5 | . . . 3 2 Traps | -11 -10 -9 -8 -7 ------- Run | Jun Mat Mat Mat Fac Traps Triggered 5 | . 2 . 1 2 Indirectly . | . . . . . Trap Hack Attempts . | . . . . . Triggered . | . . . . . Disarmed . | . . . . . Reprogrammed . | . . . . . Reused . | . . . . . Traps Extracted . | . . . . . Installed . | . . . . . Triggered . | . . . . . Machines | -11 -10 -9 -8 -7 ---------- Run | Jun Mat Mat Mat Fac Machines Disabled 6 | . 1 5 . . Max in Single Turn 3 | . 1 3 . . Machines Repaired . | . . . . . Machines Sabotaged . | . . . . . Overloaded Fab Kills . | . . . . . Hacking | -11 -10 -9 -8 -7 --------- Run | Jun Mat Mat Mat Fac Machines Accessed 9 | . 1 1 2 5 Terminals 6 | . 1 . 1 4 Fabricators . | . . . . . Repair Stations 2 | . . . 1 1 Recycling Units 1 | . . 1 . . Scanalyzers . | . . . . . Garrison Access . | . . . . . Total Hacks 20 | . 1 4 4 11 Successful 10 | . 1 1 3 5 Failed 10 | . . 3 1 6 Catastrophic 1 | . . . 1 . Database Lockouts . | . . . . . Manual . | . . . . . Terminals 10 | . 1 . 2 7 Fabricators . | . . . . . Repair Stations 6 | . . . 2 4 Recycling Units 4 | . . 4 . . Scanalyzers . | . . . . . Garrison Access . | . . . . . Terminal Hacks 6 | . 1 . 1 4 Record 1 | . 1 . . . Open DSF 1 | . . . . 1 Branch Access Points 1 | . . . 1 . Locate Traps 1 | . . . . 1 Zone Layout 2 | . . . . 2 Fabricator Hacks . | . . . . . Repair Station Hacks 3 | . . . 2 1 Scan Component 2 | . . . 1 1 Repair 1 | . . . 1 . Recycling Unit Hacks 1 | . . 1 . . Process 1 | . . 1 . . Scanalyzer . | . . . . . Garrison Access Hacks . | . . . . . Unauthorized Hacks . | . . . . . Terminals . | . . . . . Fabricators . | . . . . . Repair Stations . | . . . . . Recycling Units . | . . . . . Scanalyzers . | . . . . . Garrison Access . | . . . . . Data Cores Recovered . | . . . . . Used . | . . . . . Hacking Detections 5 | . . 1 1 3 Full Trace Events 1 | . . 1 . . Feedback Events . | . . . . . Feedback Blocked . | . . . . . Robot Schematics Acquired . | . . . . . Robots Built . | . . . . . Authchips . | . . . . . Time . | . . . . . Total Robot Build Rating . | . . . . . Part Schematics Acquired . | . . . . . Parts Built . | . . . . . Authchips . | . . . . . Time . | . . . . . Total Part Build Rating . | . . . . . Parts Repaired 1 | . . . 1 . Time 32 | . . . 32 . Parts Recycled . | . . . . . Recycled Matter 39 | . . 39 . . Retrieved Matter . | . . . . . Retrieved Components . | . . . . . Parts Scanalyzed . | . . . . . Part Schematics Acquired . | . . . . . Parts Damaged . | . . . . . Bothacking | -11 -10 -9 -8 -7 ------------ Run | Jun Mat Mat Mat Fac Used RIF Installer . | . . . . . Robots Hacked . | . . . . . Non-combat . | . . . . . Combat . | . . . . . Robot Hacks Applied . | . . . . . Relay Couplers Released . | . . . . . Fabnet Peak Effective % . | . . . . . Robots Rewired . | . . . . . Allies Hacked . | . . . . . Hacks Repelled . | . . . . . Allies | -11 -10 -9 -8 -7 -------- Run | Jun Mat Mat Mat Fac Total Allies . | . . . . . Largest Group . | . . . . . Highest-Rated Group . | . . . . . Highest-Rated Ally . | . . . . . Total Orders . | . . . . . Ally Attacks . | . . . . . Total Damage . | . . . . . Kills . | . . . . . Allies Corrupted . | . . . . . Allies Melted . | . . . . . Intel | -11 -10 -9 -8 -7 ------- Run | Jun Mat Mat Mat Fac Robot Analysis Total . | . . . . . Derelict Logs Recovered . | . . . . . Drone Launches . | . . . . . Drone Recoveries . | . . . . . Exploration | -11 -10 -9 -8 -7 ------------- Run | Jun Mat Mat Mat Fac Turns Passed 2408 | 73 264 379 551 1141 Spaces Moved 1335 | 59 114 157 283 722 Core 108 | 14 . . 76 18 Treads . | . . . . . Legs 1227 | 45 114 157 207 704 Wheels . | . . . . . Hover . | . . . . . Flight . | . . . . . Fastest Speed 50 | 50 120 120 50 50 Average Speed 123 | 103 120 120 133 122 Slowest Speed 300 | 120 120 120 190 300 Overloaded Moves . | . . . . . Propulsion Burnouts . | . . . . . Robots Hopped . | . . . . . Cave-ins Triggered . | . . . . . Exploration Rate (%) 20 | 5 20 18 35 23 Regions Visited 4 Branch Regions . Pre-discovered Areas . | . . . . . Known Exits Taken . | . . . . . Unknown Exits Taken 4 | 1 1 1 1 . Scrap Searched . | . . . . . Spaces Dug . | . . . . . Terrain Destroyed 48 | . . 36 12 . Melee . | . . . . . Projectile . | . . . . . AOE 48 | . . 36 12 . Terrain Rammed . | . . . . . Walls Destroyed . | . . . . . Machines Disabled . | . . . . . Actions | -11 -10 -9 -8 -7 --------- Run | Jun Mat Mat Mat Fac Total 1851 | 69 217 300 403 862 Wait 281 | . 84 99 65 33 Move 1331 | 58 113 156 282 722 Hop . | . . . . . Pick Up 33 | 5 5 9 4 10 Fast Attach 22 | 3 . . 3 16 Attach 26 | 3 3 2 8 10 Detach 1 | . . . 1 . Swap 11 | . . 5 4 2 Drop 8 | . . 5 2 1 Fire 137 | . 12 24 33 68 Melee . | . . . . . Ram . | . . . . . Kick 1 | . . . 1 . Crush . | . . . . . Escape Stasis . | . . . . . Rewire . | . . . . . Trap . | . . . . . Miscellaneous . | . . . . . Route ------- -11/Junkyard -10/Materials -9/Materials -8/Materials -7/Factory History --------- Turn | Location | Event 5 | -11/Junkyard | Discovered new exit (range 16) 74 | -11/Junkyard | Entered Materials 305 | -10/Materials | Build established: Mutant 317 | -10/Materials | Discovered new exit (range 14) 338 | -10/Materials | Entered another Materials area 338 | -9/Materials | Evolved 2 slots: Propulsion x2 699 | -9/Materials | Discovered new exit (range 15) 717 | -9/Materials | Entered another Materials area 717 | -8/Materials | Evolved 2 slots: Power x1, Weapon x1 851 | -8/Materials | Repaired Spread Laser 928 | -8/Materials | Build established: Scavenger-Mutant 1251 | -8/Materials | Lost 16 parts (4p6n1u5w) 1261 | -8/Materials | Discovered new exit (range 7) 1266 | -8/Materials | Core integrity fell below 50% 1268 | -8/Materials | Entered Factory 1268 | -7/Factory | Evolved 2 slots: Utility x2 1430 | -7/Factory | Build established: Mutant 1738 | -7/Factory | Core integrity fell below 50% 1747 | -7/Factory | Lost 4 parts (1p2n1w) 1943 | -7/Factory | Core integrity fell below 20% 2156 | -7/Factory | Build established: Scavenger-Gunner 2409 | -7/Factory | Destroyed by Y-54 Guardian with Flak Gun Last Messages --------------- K-01 Serf collects debris. System corrupted: Heat flow error (+258). Connecting with DSF Access... W-25 Informer sends out distress signal. System corrupted: Energy discharge (-59). System corrupted: FCS attempts to trigger Gauss Rifle. System corrupted: Gauss Rifle misfires. Slug penetrates T-07 Excavator. C-30 ARC bursts open, deploying its payload. G-50 Soldier unfolds itself. Slug penetrates Wall. G-47 Trooper destroyed. Slug penetrates Neutrino Reactor. K-01 Serf collects debris. Gauss Rifle destroyed. K-01 Serf collects debris. Power failure, Lgt. Nuclear Core shutdown. Aluminum Leg destroyed. Particle Gun destroyed. K-01 Serf collects debris. Map ----- +----------------------------------------------------+ | ?????????????????????????????????????????????????? | | ?????????????????????????????????????????????????? | | ?????????????????????????????????????????????????? | | ?????????????????????????????????????????????????? | | ?????????????????????????????????????????????????? | | ?????????????????????????????????????????????????? | | ?????????????????????????????????????????????????? | | ?????????????????????????????????????????????????? | | ?????????????????????????????????????????????????? | | ?????????????????????????????????????????????????? | | ?????????????????????????????????????????????????? | | ?????????????????????????????????????????????????? | | ?????????????????????????????????????????????????? | | ?????????????????????????????????????????????????? | | ?????????????????????????????????????????????????? | | ?????????????????????????????????????????????????? | | ?????????????????????????????????????????????????? | | ?????????????????????###########?????????????????? | | ?????????????????????# #?????????????????? | | ?????????????????????# #???"?????????????? | | ?????????????????????# #? ""?????????????? | | ?????????????????????# "" s #u ""?????????????? | | ?????????????????????+ T ggr ???????????????? | | ?????????????????????# *kg#?????????????????? | | ?????????????????????# = #?????????????????? | | ?????????????????????# @ #?????????????????? | | ?????????????????????# #?????????????????? | | ?????????????????????### k #######?????????????? | | ???????????????????????# # ?????????????? | | ???????????????????????# # """ "?????????????? | | ???????????????????????# r/ """ ?????????????? | | ???????????????????????# r# """ "?????????????? | | ???????????????????????# # ?????????????? | | ?????????????????####### #? ????????????? | | ?????????? #?? [ ???????????? | | ?????????????????####### #?? ! ????????????? | | ???????????????????????# #???#####???????????? | | ???????????????????????# #???????????????????? | | ???????????????????????# #???????????????????? | | ???????????????????????# Y#??????????????????## | | ???????????????????????# ########????????+?? | | ???????????????????????# #??????? #?? | | ???????????????????????# #?????? #?? | | ???????????????????????# + ???? +??? | | ???????????????????????# # ??? #???? | | ???????????????????????# # "?" ! ?????? | | ???????????????????????# #? ???????? | | ???????????????????##### ###+########## | | ???????????????! | | ????????????? !! | +----------------------------------------------------+ Best States ------------- Heat Dissipation 41 Energy Generation 25 Energy Capacity 400 Matter Stores 300 Matter Capacity 300 Sight Range 16 Terrain Scan Density 210 ECM Strength 1 Weapon Cycling 15 Evasion (%) 55 Core Analysis 6 Recoil Reduction 4 Offensive Hacking 10 Item Schematics ----------------- None Robot Schematics ------------------ None Fabricated ------------ Nothing Alien Tech Used ----------------- None Achievements -------------- One Hack Too Far Challenges ------------ None Game ------ Seed SpacefoldFusionDetector Manual? 0 Play Time 00:36:41 Cumulative 6.5 hours Start 2023.08.04 @ 17:23:44 End 2023.08.04 @ 18:03:29 Sessions 1 Manual Loads 0 Difficulty Rogue Special Mode None Game No. 11 Rogue 11 Adventurer 0 Explorer 0 Win Type - Total 0 Types 0/0/0/0/0/0/0/0/0 Lore% 9 Gallery% 12 Achievement% 10 Wizard Run 0 Options --------- ASCII 0 Keyboard 0 Movement Mouse Keybinds 0 Fullscreen 1 Font 18/SmallcapsGlow Map View 76x50 Tactical HUD 0 Map Filters NONE Filters NONE Steam 1 RUN: b900c385-a6e9-40dd-9391-9ae6609a1afc